fUST/lending_fUST_20241119
["ID","MTS","AMOUNT","RATE_DAILY","PERIOD"]
[342517362,1731953432856,-488.0,0.00028,30]
[342517363,1731953432866,-330.0,0.00028058,2]
[342517364,1731953432875,-1000.0,0.00028096,2]
[342517365,1731953432888,-150.57566511,0.00028157,2]
[342517366,1731953432898,-2844.28004722,0.00028158,10]
[342517367,1731953432912,-320.19607857,0.00028191,2]
[342517368,1731953432921,-14113.63,0.000282,14]
[342517369,1731953432931,-6295.94,0.000282,30]
[342517370,1731953432943,-1000.0,0.0002837,2]
[342517371,1731953432952,-5252.44,0.0002839,10]
[342517372,1731953432962,-10415.06,0.0002839,10]
[342517373,1731953432972,-62428.61787755,0.000284,2]
[342517374,1731953432985,-21243.215079,0.000284,5]
[342517375,1731953432996,-214.48698246,0.0002847,2]
[342517376,1731953433006,-214.48698237,0.00028475,2]
[342517377,1731953433016,-214.48698237,0.0002848,2]
[342517378,1731953433026,-214.48698237,0.00028484,2]
[342517379,1731953433035,-214.48698237,0.00028489,2]
[342517380,1731953433046,-214.48698237,0.00028494,2]
[342517381,1731953433056,-296.73424784,0.00028497,2]
[342517382,1731953433066,-375004.49739947,0.00028498,120]
[342517383,1731953433080,-1777.72,0.00028498,120]
[342517384,1731953433092,-1097.17691688,0.00028498,120]
[342517385,1731953433104,-84189.78193365,0.00028498,120]
[342517441,1731953438731,-150.01,0.00028157,2]
[342517443,1731953438742,-19451.49347721,0.00028498,120]
[342517445,1731953438751,-214.48698237,0.00028499,2]
[342517447,1731953438761,-214.48698237,0.00028503,2]
[342517449,1731953438770,-214.48698237,0.00028508,2]
[342517451,1731953438780,-320.19607857,0.00028513,2]
[342517453,1731953438790,-214.48698237,0.00028513,2]
[342517455,1731953438800,-152.365,0.0002857,120]
[342517457,1731953438810,-505.80189,0.000286,120]
[342517459,1731953438820,-267.942343,0.00028612,7]
[342517461,1731953438830,-151.0,0.00028612,7]
[342517463,1731953438840,-500.0,0.00028613,10]
[342517465,1731953438850,-150.14,0.00028613,2]
[342517467,1731953438860,-599.0,0.00028613,10]
[342517469,1731953438870,-841.31844944,0.00028613,2]
[342517471,1731953438880,-368.22471765,0.00028613,2]
[342517473,1731953438894,-414.99083122,0.00028613,2]
[342517475,1731953438905,-414.99083122,0.00028613,2]
[342517477,1731953438920,-8794.08330978,0.00028613,10]
[342517480,1731953438933,-2254.3991872,0.00028613,10]
[342517636,1731953440435,-721.70424337,0.00028613,10]
[342517642,1731953440481,-3947.4098,0.00028613,10]
[342517647,1731953440527,-283670.80244638,0.00028613,10]
[342517935,1731953443471,-967.12969587,0.00013773,2]
[342517937,1731953443482,-2242.47030413,0.00028603,10]
[342517940,1731953443501,-1964.439999,0.00028603,10]
[342517953,1731953443616,-4472.29969687,0.00028603,10]
[342517956,1731953443625,-3977649.01151273,0.00028613,10]
[342518238,1731953446389,-317.64,0.00028613,10]
[342518242,1731953446422,-10941.08762781,0.00028613,10]
[342518246,1731953446456,-1068.4611726,0.00028613,10]
[342519533,1731953641034,679.50001,0.00014,5]
[342519546,1731954546115,-208.564751,0.00013973,2]
[342519547,1731954546138,-160.98252118,0.00019921,2]
[342519548,1731954546160,-2914.1908476,0.00019975,2]
[342519549,1731954546181,-300.0,0.00019999,2]
[342519550,1731954546203,-300.0,0.00019999,2]
[342519551,1731954546224,-7015.625,0.0002,2]
[342519552,1731954546245,-3000.0,0.00020021,2]
[342519553,1731954546269,-208.564751,0.00020447,2]
[342519554,1731954546291,-221.2133735,0.00020993,2]
[342519555,1731954546312,-160.98252117,0.00020993,2]
[342519556,1731954546336,-163.278985,0.00021032,2]
[342519557,1731954546357,-500.0,0.00021092,2]
[342519558,1731954546378,-573.24303623,0.00021092,2]
[342519559,1731954546400,-500.0,0.00021092,2]
[342519560,1731954546421,-534.80381109,0.00021092,2]
[342519561,1731954546443,-500.0,0.00021092,2]
[342519562,1731954546464,-500.0,0.00021092,2]
[342519563,1731954546486,-500.0,0.00021092,2]
[342519564,1731954546507,-500.0,0.00021093,2]
[342519565,1731954546528,-500.0,0.00021093,2]
[342519566,1731954546549,-500.0,0.00021093,2]
[342519567,1731954546571,-500.0,0.00021093,2]
[342519568,1731954546593,-500.0,0.00021093,2]
[342519569,1731954546614,-534.64809047,0.00021093,2]
[342519570,1731954546640,-500.0,0.00021093,2]
[342519571,1731954546843,-500.0,0.00021093,2]
[342519572,1731954546865,-500.0,0.00021093,2]
[342519573,1731954546888,-607.93283081,0.00021093,2]
[342519574,1731954546911,-517.39,0.00021093,2]
[342519575,1731954546936,-1927.83,0.00021093,2]
[342519576,1731954546973,-500.0,0.00021093,2]
[342519577,1731954546995,-500.0,0.00021093,2]
[342519578,1731954547016,-500.0,0.00021093,2]
[342519579,1731954547038,-500.0,0.00021093,2]
[342519580,1731954547060,-500.0,0.00021093,2]
[342519581,1731954547082,-500.0,0.00021093,2]
[342519582,1731954547103,-500.0,0.00021093,2]
[342519583,1731954547124,-500.89561343,0.00021093,2]
[342519584,1731954547145,-500.0,0.00021093,2]
[342519585,1731954547167,-500.0,0.00021093,2]
[342519586,1731954547187,-500.0,0.00021093,2]
[342519587,1731954547208,-500.0,0.00021093,2]
[342519588,1731954547228,-518.92022493,0.00021093,2]
[342519589,1731954547248,-500.88247779,0.00021093,2]
[342519590,1731954547270,-500.85731813,0.00021093,2]
[342519591,1731954547293,-500.0,0.00021093,2]
[342519592,1731954547316,-500.0,0.00021093,2]
[342519593,1731954547338,-724.32,0.00021093,2]
[342519594,1731954547358,-502.98202377,0.00021093,2]
[342519595,1731954547379,-502.93,0.00021093,2]
[342519596,1731954547400,-500.0,0.00021093,2]
[342519597,1731954547421,-500.0,0.00021093,2]
[342519598,1731954547441,-500.0,0.00021093,2]
[342519599,1731954547480,-500.0,0.00021093,2]
[342519600,1731954547500,-500.0,0.00021093,2]
[342519601,1731954547521,-500.0,0.00021093,2]
[342519602,1731954547541,-500.0,0.00021093,2]
[342519603,1731954547565,-837.2,0.00021093,2]
[342519604,1731954547587,-358.65024734,0.00021093,2]
[342519605,1731954547608,-500.0,0.00021093,2]
[342519606,1731954547629,-500.0,0.00021093,2]
[342519607,1731954547650,-500.0,0.00021093,2]
[342519608,1731954547671,-500.0,0.00021093,2]
[342519609,1731954547693,-500.0,0.00021093,2]
[342519610,1731954547715,-500.0,0.00021093,2]
[342519611,1731954547736,-622.0,0.00021093,2]
[342519612,1731954547757,-500.0,0.00021093,2]
[342519613,1731954547778,-500.0,0.00021093,2]
[342519614,1731954547800,-500.0,0.00021093,2]
[342519615,1731954547821,-500.0,0.00021093,2]
[342519616,1731954547843,-500.0,0.00021093,2]
[342519617,1731954547863,-229.65405289,0.00021094,2]
[342519618,1731954547885,-24900.0,0.00021094,2]
[342519619,1731954547906,-1807.96443086,0.00021267,2]
[342519620,1731954547927,-500.0,0.00021366,2]
[342519621,1731954547947,-500.0,0.00021366,2]
[342519622,1731954547986,-500.0,0.00021366,2]
[342519623,1731954548007,-500.0,0.00021366,2]
[342519624,1731954548028,-500.0,0.00021366,2]
[342519625,1731954548051,-500.0,0.00021367,2]
[342519626,1731954548071,-386.15,0.00021367,2]
[342519627,1731954548092,-500.0,0.00021367,2]
[342519628,1731954548113,-500.0,0.00021367,2]
[342519629,1731954548134,-500.0,0.00021367,2]
[342519630,1731954548157,-500.0,0.00021367,2]
[342519631,1731954548179,-263.22,0.00021367,2]
[342519632,1731954548199,-201.34,0.00021367,2]
[342519633,1731954548222,-1927.83,0.00021367,2]
[342519634,1731954548244,-500.0,0.00021367,2]
[342519635,1731954548269,-500.0,0.00021367,2]
[342519636,1731954548290,-500.0,0.00021367,2]
[342519637,1731954548314,-500.0,0.00021367,2]
[342519638,1731954548337,-443.85,0.00021367,2]
[342519639,1731954548359,-500.0,0.00021367,2]
[342519640,1731954548379,-500.0,0.00021367,2]
[342519641,1731954548399,-157.64,0.00021367,2]
[342519642,1731954548419,-384.36,0.00021367,2]
[342519643,1731954548440,-591.69,0.00021367,2]
[342519644,1731954548469,-724.32,0.00021367,2]
[342519645,1731954548489,-500.0,0.00021367,2]
[342519646,1731954548515,-500.0,0.00021367,2]
[342519647,1731954548535,-286.73,0.00021367,2]
[342519648,1731954548557,-837.2,0.00021367,2]
[342519649,1731954548579,-259.71,0.00021367,2]
[342519650,1731954548599,-500.0,0.00021367,2]
[342519651,1731954548620,-299.61,0.00021367,2]
[342519652,1731954548640,-500.0,0.00021367,2]
[342519653,1731954548661,-500.0,0.00021367,2]
[342519654,1731954548683,-500.0,0.00021367,2]
[342519655,1731954548704,-500.0,0.00021367,2]
[342519656,1731954548725,-534.6,0.0002164,2]
[342519657,1731954548746,-500.0,0.0002164,2]
[342519658,1731954548768,-500.0,0.0002164,2]
[342519659,1731954548789,-528.05,0.0002164,2]
[342519660,1731954548811,-500.0,0.0002164,2]
[342519661,1731954548834,-310.15,0.00021641,2]
[342519662,1731954548855,-501.77,0.00021641,2]
[342519663,1731954548876,-440.73,0.00021641,2]
[342519664,1731954548898,-279.3,0.00021641,2]
[342519665,1731954548920,-405.68,0.00021641,2]
[342519666,1731954548943,-1927.83,0.00021641,2]
[342519667,1731954548969,-271.14,0.00021641,2]
[342519668,1731954548998,-500.0,0.00021641,2]
[342519669,1731954549020,-500.0,0.00021641,2]
[342519670,1731954549043,-517.05,0.00021641,2]
[342519671,1731954549064,-547.04,0.00021641,2]
[342519672,1731954549085,-500.0,0.00021641,2]
[342519673,1731954549106,-724.32,0.00021641,2]
[342519674,1731954549128,-500.0,0.00021641,2]
[342519675,1731954549150,-500.0,0.00021641,2]
[342519676,1731954549175,-837.2,0.00021641,2]
[342519677,1731954549197,-363.39,0.00021641,2]
[342519678,1731954549228,-358.55,0.00021641,2]
[342519679,1731954549249,-500.0,0.00021641,2]
[342519680,1731954549276,-500.0,0.00021641,2]
[342519681,1731954549297,-500.0,0.00021641,2]
[342519682,1731954549320,-157.63645,0.00021663,2]
[342519683,1731954549343,-1807.96443085,0.00021719,2]
[342519684,1731954549364,-797.65,0.00021905,3]
[342519685,1731954549385,-500.0,0.00021914,2]
[342519686,1731954549406,-500.0,0.00021914,2]
[342519687,1731954549428,-500.0,0.00021914,2]
[342519688,1731954549451,-1927.83,0.00021915,2]
[342519689,1731954549489,-500.0,0.00021915,2]
[342519690,1731954549511,-500.0,0.00021915,2]
[342519691,1731954549532,-500.0,0.00021915,2]
[342519692,1731954549553,-724.32,0.00021915,2]
[342519693,1731954549574,-500.0,0.00021915,2]
[342519694,1731954549594,-500.0,0.00021915,2]
[342519695,1731954549616,-837.2,0.00021915,2]
[342519696,1731954549637,-500.0,0.00021915,2]
[342519697,1731954549658,-500.0,0.00021915,2]
[342519698,1731954549679,-350.1,0.00021915,2]
[342519699,1731954549700,-3679.25421636,0.00021917,2]
[342519700,1731954549767,-12173.3608444,0.00021917,2]
[342519704,1731954559122,-7015.625,0.0002,2]
[342519705,1731954559146,-1050.38,0.00021093,2]
[342519706,1731954559169,-1050.38,0.00021367,2]
[342519707,1731954559192,-1050.38,0.00021641,2]
[342519708,1731954559218,-1050.38,0.00021915,2]
[342519709,1731954559241,-11839.45493924,0.00021917,2]
[342519710,1731954559265,-300.0,0.00021999,2]
[342519711,1731954559288,-165.0,0.00022,2]
[342519712,1731954559312,-1807.96443085,0.00022171,2]
[342519713,1731954559334,-500.0,0.00022188,2]
[342519714,1731954559358,-500.0,0.00022188,2]
[342519715,1731954559381,-500.0,0.00022188,2]
[342519716,1731954559404,-1927.83,0.00022189,2]
[342519717,1731954559427,-500.0,0.00022189,2]
[342519718,1731954559451,-500.0,0.00022189,2]
[342519719,1731954559476,-500.0,0.00022189,2]
[342519720,1731954559498,-724.32,0.00022189,2]
[342519721,1731954559520,-500.0,0.00022189,2]
[342519722,1731954559542,-500.0,0.00022189,2]
[342519723,1731954559565,-837.2,0.00022189,2]
[342519724,1731954559587,-500.0,0.00022189,2]
[342519725,1731954559608,-500.0,0.00022189,2]
[342519726,1731954559631,-1050.38,0.00022189,2]
[342519727,1731954559651,-500.0,0.00022462,2]
[342519728,1731954559672,-374.94346797,0.00022462,2]
[342519729,1731954559693,-500.0,0.00022462,2]
[342519730,1731954559716,-1927.83,0.00022463,2]
[342519731,1731954559738,-500.0,0.00022463,2]
[342519732,1731954559759,-500.0,0.00022463,2]
[342519733,1731954559780,-500.0,0.00022463,2]
[342519734,1731954559802,-724.32,0.00022463,2]
[342519735,1731954559823,-500.0,0.00022463,2]
[342519736,1731954559844,-590.92,0.00022463,2]
[342519737,1731954559865,-837.2,0.00022463,2]
[342519738,1731954559890,-587.18,0.00022463,2]
[342519739,1731954559912,-500.0,0.00022463,2]
[342519740,1731954559934,-1050.38,0.00022463,2]
[342519741,1731954559956,-1807.96443085,0.00022622,2]
[342519742,1731954559982,-500.0,0.00022736,2]
[342519743,1731954560003,-500.0,0.00022736,2]
[342519744,1731954560025,-1927.83,0.00022737,2]
[342519745,1731954560047,-500.0,0.00022737,2]
[342519746,1731954560069,-500.0,0.00022737,2]
[342519747,1731954560090,-157.93,0.00022737,2]
[342519748,1731954560112,-724.32,0.00022737,2]
[342519749,1731954560133,-500.0,0.00022737,2]
[342519750,1731954560155,-837.2,0.00022737,2]
[342519751,1731954560177,-500.0,0.00022737,2]
[342519752,1731954560201,-1050.38,0.00022737,2]
[342519753,1731954560224,-500.0,0.0002301,2]
[342519754,1731954560246,-500.0,0.0002301,2]
[342519755,1731954560271,-1927.83,0.00023011,2]
[342519756,1731954560293,-500.0,0.00023011,2]
[342519757,1731954560315,-500.0,0.00023011,2]
[342519758,1731954560338,-724.32,0.00023011,2]
[342519759,1731954560361,-536.93,0.00023011,2]
[342519760,1731954560383,-837.2,0.00023011,2]
[342519761,1731954560405,-500.0,0.00023011,2]
[342519762,1731954560427,-1050.38,0.00023011,2]
[342519763,1731954560447,-165.0,0.00023014,2]
[342519764,1731954560472,-1807.96443085,0.00023074,2]
[342519765,1731954560492,-207.71397349,0.00023171,2]
[342519766,1731954560512,-27692.07,0.00023172,2]
[342519767,1731954560533,-27692.07,0.00023172,2]
[342519768,1731954560556,-27692.07,0.00023172,2]
[342519769,1731954560577,-500.0,0.00023173,2]
[342519770,1731954560598,-515.90840972,0.00023173,2]
[342519771,1731954560619,-500.0,0.00023173,2]
[342519772,1731954560639,-500.0,0.00023173,2]
[342519773,1731954560659,-500.0,0.00023173,2]
[342519774,1731954560679,-582.15,0.00023173,2]
[342519775,1731954560699,-500.0,0.00023173,2]
[342519776,1731954560722,-501.82278823,0.00023173,2]
[342519777,1731954560744,-500.0,0.00023173,2]
[342519778,1731954560764,-500.0,0.00023173,2]
[342519779,1731954560784,-500.0,0.00023173,2]
[342519780,1731954560804,-500.0,0.00023173,2]
[342519781,1731954560823,-500.0,0.00023173,2]
[342519782,1731954560843,-528.64144774,0.00023173,2]
[342519783,1731954560865,-500.0,0.00023173,2]
[342519784,1731954560884,-500.0,0.00023173,2]
[342519785,1731954560904,-502.02031692,0.00023173,2]
[342519786,1731954560924,-1000.0,0.00023173,5]
[342519787,1731954560944,-500.0,0.00023173,2]
[342519788,1731954560967,-503.11859019,0.00023173,2]
[342519789,1731954560988,-500.0,0.00023173,2]
[342519790,1731954561008,-500.0,0.00023173,2]
[342519791,1731954561029,-500.0,0.00023173,2]
[342519792,1731954561049,-500.0,0.00023173,2]
[342519793,1731954561070,-502.92869108,0.00023173,2]
[342519794,1731954561091,-500.0,0.00023173,2]
[342519795,1731954561111,-500.0,0.00023173,2]
[342519796,1731954561131,-500.0,0.00023173,2]
[342519797,1731954561151,-559.91,0.00023173,2]
[342519798,1731954561172,-500.0,0.00023173,2]
[342519799,1731954561193,-500.0,0.00023173,2]
[342519800,1731954561213,-500.0,0.00023173,2]
[342519801,1731954561237,-500.0,0.00023173,2]
[342519802,1731954561258,-500.0,0.00023173,2]
[342519803,1731954561283,-500.0,0.00023173,2]
[342519804,1731954561305,-500.0,0.00023173,2]
[342519805,1731954561326,-500.0,0.00023173,2]
[342519806,1731954561349,-2336.0,0.00023173,2]
[342519807,1731954561371,-581.5,0.00023173,2]
[342519808,1731954561393,-500.0,0.00023173,2]
[342519809,1731954561415,-500.0,0.00023173,2]
[342519810,1731954561439,-500.0,0.00023173,2]
[342519811,1731954561460,-500.0,0.00023173,2]
[342519812,1731954561484,-500.0,0.00023173,2]
[342519813,1731954561506,-500.0,0.00023173,2]
[342519814,1731954561527,-568.65,0.00023173,2]
[342519815,1731954561548,-500.0,0.00023173,2]
[342519816,1731954561571,-500.0,0.00023173,2]
[342519817,1731954561593,-500.0,0.00023173,2]
[342519818,1731954561615,-500.0,0.00023173,2]
[342519819,1731954561635,-536.21,0.00023173,2]
[342519820,1731954561655,-500.0,0.00023173,2]
[342519821,1731954561675,-500.0,0.00023173,2]
[342519822,1731954561695,-500.0,0.00023173,2]
[342519823,1731954561717,-500.0,0.00023173,2]
[342519824,1731954561737,-500.0,0.00023173,2]
[342519825,1731954561757,-500.0,0.00023173,2]
[342519826,1731954561778,-500.0,0.00023173,2]
[342519827,1731954561798,-500.68397557,0.00023173,2]
[342519828,1731954561819,-500.0,0.00023173,2]
[342519829,1731954561841,-500.0,0.00023173,2]
[342519830,1731954561862,-500.0,0.00023173,2]
[342519831,1731954561883,-500.0,0.00023173,2]
[342519832,1731954561904,-500.0,0.00023173,2]
[342519833,1731954561925,-500.0,0.00023173,2]
[342519834,1731954561946,-500.66656308,0.00023173,2]
[342519835,1731954561971,-500.0,0.00023173,2]
[342519836,1731954561992,-500.0,0.00023173,2]
[342519837,1731954562014,-500.0,0.00023173,2]
[342519838,1731954562167,-500.0,0.00023173,2]
[342519839,1731954562190,-500.0,0.00023173,2]
[342519840,1731954562211,-500.0,0.00023173,2]
[342519841,1731954562237,-505.18101891,0.00023173,2]
[342519842,1731954562260,-500.0,0.00023173,2]
[342519843,1731954562287,-500.0,0.00023173,2]
[342519844,1731954562311,-500.0,0.00023173,2]
[342519845,1731954562336,-500.0,0.00023173,2]
[342519846,1731954562363,-500.0,0.00023173,2]
[342519847,1731954562388,-500.0,0.00023173,2]
[342519848,1731954562412,-500.0,0.00023173,2]
[342519849,1731954562439,-500.0,0.00023173,2]
[342519850,1731954562465,-500.0,0.00023173,2]
[342519851,1731954562506,-500.45283632,0.00023173,2]
[342519852,1731954562532,-555.23,0.00023173,2]
[342519853,1731954562559,-500.0,0.00023173,2]
[342519854,1731954562583,-500.0,0.00023173,2]
[342519855,1731954562609,-27692.07,0.00023173,2]
[342519856,1731954562636,-3269.36623799,0.00023173,2]
[342519857,1731954565110,-270.02,0.00021093,2]
[342519858,1731954565133,-24422.70376201,0.00023173,2]
[342519859,1731954565156,-500.0,0.00023173,2]
[342519860,1731954565178,-501.23069383,0.00023173,2]
[342519861,1731954565200,-500.0,0.00023173,2]
[342519862,1731954565226,-547.72,0.00023173,2]
[342519863,1731954565248,-501.1626512,0.00023173,2]
[342519864,1731954565270,-500.0,0.00023173,2]
[342519865,1731954565294,-500.0,0.00023173,2]
[342519866,1731954565316,-500.0,0.00023173,2]
[342519867,1731954565337,-500.0,0.00023173,2]
[342519868,1731954565360,-500.0,0.00023173,2]
[342519869,1731954565381,-506.22947369,0.00023173,2]
[342519870,1731954565401,-500.0,0.00023173,2]
[342519871,1731954565422,-500.0,0.00023173,2]
[342519872,1731954565443,-500.0,0.00023173,2]
[342519873,1731954565465,-500.0,0.00023173,2]
[342519874,1731954565489,-500.0,0.00023173,2]
[342519875,1731954565509,-500.0,0.00023173,2]
[342519876,1731954565529,-500.0,0.00023173,2]
[342519877,1731954565550,-500.44636262,0.00023173,2]
[342519878,1731954565570,-500.0,0.00023173,2]
[342519879,1731954565591,-500.0,0.00023173,2]
[342519880,1731954565611,-500.0,0.00023173,2]
[342519881,1731954565632,-500.06928198,0.00023173,2]
[342519882,1731954565654,-965.13,0.00023173,2]
[342519883,1731954565674,-500.0,0.00023173,2]
[342519884,1731954565695,-500.0,0.00023173,2]
[342519885,1731954565720,-500.0,0.00023173,2]
[342519886,1731954565740,-503.93094447,0.00023173,2]
[342519887,1731954565761,-500.0,0.00023173,2]
[342519888,1731954565781,-500.0,0.00023173,2]
[342519889,1731954565801,-500.0,0.00023173,2]
[342519890,1731954565820,-500.0,0.00023173,2]
[342519891,1731954565840,-500.0,0.00023173,2]
[342519892,1731954565861,-500.0,0.00023173,2]
[342519893,1731954565882,-500.0,0.00023173,2]
[342519894,1731954565902,-500.33113951,0.00023173,2]
[342519895,1731954565923,-500.0,0.00023173,2]
[342519896,1731954565944,-500.0,0.00023173,2]
[342519897,1731954565966,-500.0,0.00023173,2]
[342519898,1731954565990,-600.12,0.00023173,2]
[342519899,1731954566011,-502.6094748,0.00023173,2]
[342519900,1731954566033,-501.3874531,0.00023173,2]
[342519901,1731954566055,-500.0,0.00023173,2]
[342519902,1731954566076,-500.0,0.00023173,2]
[342519903,1731954566097,-500.0,0.00023173,2]
[342519904,1731954566117,-500.0,0.00023173,2]
[342519905,1731954566137,-500.0,0.00023173,2]
[342519906,1731954566158,-570.77878038,0.00023173,2]
[342519907,1731954566178,-500.0,0.00023173,2]
[342519908,1731954566198,-500.0,0.00023173,2]
[342519909,1731954566220,-643.3106171,0.00023173,2]
[342519910,1731954566242,-500.0,0.00023173,2]
[342519911,1731954566263,-500.0,0.00023173,2]
[342519912,1731954566287,-500.0,0.00023173,2]
[342519913,1731954566309,-500.0,0.00023173,2]
[342519914,1731954566330,-500.0,0.00023173,2]
[342519915,1731954566352,-500.36964546,0.00023173,2]
[342519916,1731954566373,-500.0,0.00023173,2]
[342519917,1731954566394,-500.0,0.00023173,2]
[342519918,1731954566415,-500.0,0.00023173,2]
[342519919,1731954566437,-631.7,0.00023173,2]
[342519920,1731954566458,-500.0,0.00023173,2]
[342519921,1731954566485,-500.0,0.00023173,2]
[342519922,1731954566506,-500.0,0.00023173,2]
[342519923,1731954566532,-500.0,0.00023173,2]
[342519924,1731954566554,-500.0,0.00023173,2]
[342519925,1731954566576,-518.59770647,0.00023174,2]
[342519926,1731954566597,-500.0,0.00023174,2]
[342519927,1731954566618,-521.84673258,0.00023174,2]
[342519928,1731954566639,-500.0,0.00023174,2]
[342519929,1731954566660,-500.0,0.00023174,2]
[342519930,1731954566680,-506.34277529,0.00023174,2]
[342519931,1731954566701,-540.38,0.00023174,2]
[342519932,1731954566722,-500.0,0.00023174,2]
[342519933,1731954566744,-632.45,0.00023174,2]
[342519934,1731954566765,-500.0,0.00023174,2]
[342519935,1731954566786,-500.0,0.00023174,2]
[342519936,1731954566807,-500.0,0.00023174,2]
[342519937,1731954566827,-649.03,0.00023174,2]
[342519938,1731954566848,-500.0,0.00023174,2]
[342519939,1731954566869,-500.0,0.00023174,2]
[342519940,1731954566891,-500.0,0.00023174,2]
[342519941,1731954566913,-500.0,0.00023174,2]
[342519942,1731954566933,-500.0,0.00023174,2]
[342519943,1731954566954,-500.17166065,0.00023174,2]
[342519944,1731954566981,-553.96677325,0.00023174,2]
[342519945,1731954567002,-500.0,0.00023174,2]
[342519946,1731954567023,-500.0,0.00023174,2]
[342519947,1731954567042,-640.47,0.00023174,2]
[342519948,1731954567063,-500.0,0.00023174,2]
[342519949,1731954567083,-507.87795909,0.00023174,2]
[342519950,1731954567102,-501.08251477,0.00023174,2]
[342519951,1731954567122,-2000.0,0.00023174,2]
[342519952,1731954567142,-500.0,0.00023174,2]
[342519953,1731954567161,-500.0,0.00023174,2]
[342519954,1731954567181,-3891.27,0.00023174,2]
[342519955,1731954567200,-490.05777415,0.00023174,2]
[342519956,1731954567221,-500.0,0.00023174,2]
[342519957,1731954567241,-389.26013408,0.00023174,2]
[342519958,1731954567261,-500.0,0.00023174,2]
[342519959,1731954567285,-500.0,0.00023174,2]
[342519960,1731954567433,-500.0,0.00023174,2]
[342519961,1731954567456,-500.0,0.00023174,2]
[342519962,1731954567479,-500.0,0.00023174,2]
[342519963,1731954567500,-500.0,0.00023174,2]
[342519964,1731954567522,-505.47,0.00023174,2]
[342519965,1731954567543,-500.66264077,0.00023174,2]
[342519966,1731954567565,-500.0,0.00023284,2]
[342519967,1731954567588,-500.0,0.00023284,2]
[342519968,1731954567610,-1927.83,0.00023285,2]
[342519969,1731954567633,-500.0,0.00023285,2]
[342519970,1731954567656,-500.0,0.00023285,2]
[342519971,1731954567678,-724.32,0.00023285,2]
[342519972,1731954567701,-837.2,0.00023285,2]
[342519973,1731954567727,-500.0,0.00023285,2]
[342519974,1731954567748,-1050.38,0.00023285,2]
[342519975,1731954567769,-442.92,0.00023447,2]
[342519976,1731954567790,-500.0,0.00023447,2]
[342519977,1731954567812,-500.0,0.00023447,2]
[342519978,1731954567832,-196.39,0.00023447,2]
[342519979,1731954567853,-500.0,0.00023447,2]
[342519980,1731954567874,-500.0,0.00023447,2]
[342519981,1731954567896,-500.0,0.00023447,2]
[342519982,1731954567916,-310.06,0.00023447,2]
[342519983,1731954567938,-500.0,0.00023447,2]
[342519984,1731954567961,-500.0,0.00023447,2]
[342519985,1731954567984,-418.06,0.00023447,2]
[342519986,1731954568004,-212.99,0.00023447,2]
[342519987,1731954568025,-269.21,0.00023447,2]
[342519988,1731954568047,-265.6,0.00023447,2]
[342519989,1731954568068,-500.0,0.00023447,2]
[342519990,1731954568089,-500.0,0.00023447,2]
[342519991,1731954568111,-426.42289498,0.00023447,2]
[342519992,1731954568131,-441.88,0.00023447,2]